bitfinex-derivatives/quotes_SOLF0:USTF0_20251023
["timestamp","ask_amount","ask_price","bid_price","bid_amount"]
[1761246796574,4.34802864,191.38,191.3,1.74802864]
[1761246796575,2.6,191.4,191.37,2.76]
[1761246796869,13.27664382,191.39,191.36,7.4618]
[1761246797067,8.92861518,191.38,191.36,7.4618]
[1761246797267,4.34802864,191.39,191.36,7.4618]
[1761246797469,8.92743069,191.38,191.36,7.4618]
[1761246797667,4.04216035,191.38,191.36,7.4618]
[1761246798068,8.9265558,191.38,191.36,7.4618]
[1761246798870,8.9265558,191.38,191.37,2.76]
[1761246799072,1.74802864,191.42,191.39,2.76]
[1761246799372,8.92434786,191.41,191.39,2.76]
[1761246799674,8.92434786,191.4,191.38,7.4613]
[1761246799876,8.92434786,191.39,191.38,7.4613]
[1761246800466,4.04086503,191.39,191.38,7.4613]
[1761246800668,8.92434786,191.4,191.38,7.4613]
[1761246800867,8.92434786,191.39,191.38,7.4613]
[1761246801169,8.92434786,191.41,191.38,7.4613]
[1761246801474,8.92434786,191.4,191.38,7.4613]
[1761246801776,8.92434786,191.39,191.38,9.20932864]
[1761246801967,2.6,191.42,191.39,7.461]
[1761246802170,8.9219619,191.41,191.39,7.461]
[1761246802362,8.9219619,191.4,191.39,7.461]
[1761246805479,4.88224844,191.4,191.39,4.701]
[1761246805779,2.6,191.43,191.39,4.701]
[1761246805972,11.52266881,191.42,191.39,7.461]
[1761246806178,8.92266881,191.41,191.39,7.461]
[1761246808282,4.04018611,191.41,191.39,7.461]
[1761246808980,4.04018611,191.41,191.39,7.471]
[1761246809182,4.04018611,191.41,191.4,2.77]
[1761246809989,8.87802377,191.43,191.4,7.4708]
[1761246810283,8.87802377,191.42,191.4,7.4708]
[1761246810479,4.04018611,191.41,191.4,7.4708]
[1761246811684,4.04018611,191.41,191.4,4.7008]
[1761246812586,4.04018611,191.41,191.4,7.4708]
[1761246813382,4.04018611,191.41,191.4,9.21882864]
[1761246813777,4.04018611,191.41,191.4,7.4708]
[1761246816687,7.58783766,191.42,191.4,7.4708]
[1761246816884,2.75,191.42,191.4,7.4708]
[1761246817887,7.59030296,191.42,191.4,7.4708]
[1761246818187,2.75,191.42,191.4,7.4708]
[1761246819082,7.58993131,191.42,191.4,7.4708]
[1761246819285,2.75,191.42,191.4,7.4708]
[1761246820081,7.59001342,191.42,191.4,7.4708]
[1761246820276,2.75,191.42,191.4,7.4708]
[1761246821388,7.59009543,191.42,191.4,7.4708]
[1761246821589,4.05177705,191.41,191.4,7.4708]
[1761246827686,8.89312926,191.41,191.4,7.4708]
[1761246827886,4.05177705,191.41,191.4,7.4708]
[1761246828596,8.89312926,191.41,191.4,7.4708]
[1761246828798,4.05177705,191.41,191.4,7.4708]
[1761246829288,8.89312926,191.41,191.4,7.4708]
[1761246829491,4.05177705,191.41,191.4,7.4708]
[1761246829688,8.89312926,191.41,191.4,7.4708]
[1761246829889,4.05177705,191.41,191.4,7.4708]
[1761246830188,8.89312926,191.41,191.4,7.4708]
[1761246830895,4.05177705,191.41,191.4,7.4708]
[1761246831095,8.89312926,191.41,191.4,7.4708]
[1761246831294,4.05177705,191.41,191.4,7.4708]
[1761246832089,11.64312926,191.41,191.4,4.7008]
[1761246832292,2.75,191.4,191.31,2.77]
[1761246832597,2.75,191.38,191.31,4.51802864]
[1761246832797,7.59185386,191.38,191.32,2.77]
[1761246832996,4.05276697,191.37,191.32,2.77]
[1761246833299,2.75,191.38,191.32,2.77]
[1761246833498,4.05276697,191.37,191.32,2.77]
[1761246833797,2.75,191.36,191.35,4.702]
[1761246834189,11.64408253,191.38,191.35,4.702]
[1761246834389,11.64408253,191.38,191.31,1.74802864]
[1761246834390,2.75,191.39,191.36,7.4717]
[1761246834589,4.05224761,191.38,191.36,7.4717]
[1761246834793,4.05224761,191.38,191.37,2.77]
[1761246835191,4.05224761,191.38,191.36,7.4717]
[1761246835598,6.80224761,191.38,191.36,7.4717]
[1761246835798,6.80224761,191.38,191.36,4.7017]
[1761246837507,2.75,191.38,191.36,4.7017]
[1761246837806,7.59197082,191.38,191.36,4.7017]
[1761246837996,2.75,191.38,191.36,4.7017]
[1761246838496,7.59197082,191.38,191.36,4.7017]
[1761246838804,2.75,191.38,191.36,4.7017]
[1761246839000,2.75,191.38,191.36,7.3317]
[1761246839301,4.86613801,191.38,191.37,2.63]
[1761246839598,4.05284343,191.38,191.36,4.7017]
[1761246839902,7.61613801,191.38,191.36,4.7017]
[1761246840102,2.75,191.38,191.36,4.7017]
[1761246840297,4.86740711,191.39,191.37,7.3315]
[1761246840497,4.05378071,191.38,191.37,4.7015]
[1761246840698,11.67151166,191.39,191.37,4.7015]
[1761246840895,8.92151166,191.38,191.37,4.7015]
[1761246841608,6.80378071,191.38,191.37,4.7015]
[1761246841806,11.67151166,191.38,191.37,4.7015]
[1761246842007,6.80378071,191.38,191.37,4.7015]
[1761246842307,11.67151166,191.38,191.35,7.3319]
[1761246842508,4.05378071,191.37,191.35,7.3319]
[1761246842704,2.75,191.38,191.35,7.3319]
[1761246842906,4.05507952,191.37,191.35,7.3319]
[1761246843107,2.75,191.38,191.35,7.3319]
[1761246843306,4.05525486,191.37,191.35,7.3319]
[1761246843506,2.75,191.38,191.35,7.3319]
[1761246846714,2.75,191.38,191.36,2.63]
[1761246849316,8.91257808,191.37,191.32,2.63]
[1761246849514,2.75,191.35,191.28,2.63]
[1761246849714,2.75,191.34,191.28,2.63]
[1761246849913,11.66187942,191.33,191.28,2.63]
[1761246850114,2.75,191.33,191.28,2.63]
[1761246850512,2.75,191.32,191.28,2.63]
[1761246850818,2.75,191.32,191.29,4.7035]
[1761246851018,2.75,191.32,191.29,7.3335]
[1761246851408,2.75,191.32,191.27,4.7039]
[1761246851611,2.75,191.31,191.27,7.3339]
[1761246854024,2.75,191.31,191.28,2.63]
[1761246855124,8.88758107,191.34,191.29,2.63]
[1761246855318,2.75,191.33,191.29,2.63]
[1761246856320,2.75,191.33,191.29,7.3335]
[1761246858530,2.75,191.33,191.27,4.704]
[1761246858827,2.75,191.33,191.27,2.63]
[1761246860029,2.75,191.33,191.29,2.63]
[1761246862228,2.75,191.33,191.28,4.7037]
[1761246862728,2.75,191.33,191.28,7.3337]
[1761246863730,2.75,191.33,191.29,2.63]
[1761246864225,2.75,191.36,191.3,2.63]
[1761246864533,6.77858646,191.36,191.3,2.63]
[1761246864830,7.5986684,191.37,191.32,2.63]
[1761246865032,2.75,191.36,191.32,2.63]
[1761246865925,2.75,191.36,191.32,7.3326]
[1761246868221,2.75,191.36,191.33,2.79]
[1761246872537,2.75,191.36,191.32,7.4726]
[1761246872936,2.75,191.36,191.33,2.77]
[1761246873633,2.75,191.36,191.32,4.7026]
[1761246873837,2.75,191.36,191.32,7.4726]
[1761246874036,2.84,191.35,191.32,7.4726]
[1761246875041,2.84,191.35,191.32,2.77]
[1761246877342,6.87835135,191.35,191.32,2.77]
[1761246878743,2.84,191.34,191.32,2.77]
[1761246881935,2.84,191.34,191.3,7.4732]
[1761246882141,2.84,191.34,191.31,2.77]
[1761246883144,7.74069116,191.34,191.31,2.77]
[1761246883346,2.84,191.34,191.31,2.77]
[1761246883740,7.74413108,191.34,191.31,2.77]
[1761246883942,2.84,191.34,191.31,2.77]
[1761246884441,11.78864006,191.34,191.31,2.77]
[1761246884641,2.84,191.34,191.31,2.77]
[1761246885145,11.78961957,191.34,191.31,2.77]
[1761246885344,2.84,191.32,191.25,2.77]
[1761246885549,2.84,191.31,191.25,2.77]
[1761246885934,2.84,191.31,191.23,106.53453848]
[1761246885935,2.84,191.31,191.27,2.77]
[1761246888247,2.84,191.34,191.28,2.77]
[1761246888445,4.91039616,191.33,191.28,2.77]
[1761246888650,11.79838736,191.36,191.28,2.77]
[1761246888950,8.95838736,191.35,191.28,2.77]
[1761246889148,11.79838736,191.34,191.3,2.77]
[1761246889346,2.84,191.34,191.3,2.77]
[1761246889747,6.88909132,191.34,191.3,2.77]
[1761246889950,2.84,191.34,191.3,2.77]
[1761246891254,11.80270722,191.33,191.3,2.77]
[1761246891553,2.84,191.33,191.3,2.77]
[1761246894356,4.92075353,191.32,191.3,2.77]
[1761246894657,2.84,191.33,191.3,2.77]
[1761246894854,4.92075502,191.32,191.3,2.77]
[1761246895056,2.84,191.33,191.3,2.77]
[1761246895352,4.92075329,191.32,191.3,2.77]
[1761246895556,2.84,191.33,191.3,2.77]
[1761246895760,4.92075813,191.32,191.3,2.77]
[1761246895948,2.84,191.33,191.3,2.77]
[1761246896144,4.92075899,191.32,191.3,2.77]
[1761246896348,2.84,191.33,191.3,2.77]
[1761246896552,4.92076194,191.32,191.3,2.77]
[1761246896849,2.84,191.33,191.3,2.77]
[1761246897146,4.92024734,191.32,191.3,2.77]
[1761246897347,2.84,191.33,191.3,2.77]
[1761246897553,4.92069627,191.32,191.3,2.77]
[1761246897752,2.84,191.33,191.3,2.77]
[1761246897949,4.92069627,191.32,191.3,2.77]
[1761246898149,2.84,191.33,191.3,2.77]
[1761246898350,2.84,191.31,191.28,2.77]
[1761246898557,2.84,191.34,191.28,2.77]
[1761246898757,2.84,191.32,191.28,2.77]
[1761246899956,2.84,191.32,191.28,7.4737]
[1761246900158,2.84,191.32,191.29,2.61]
[1761246902850,2.84,191.32,191.28,4.7037]
[1761246903050,2.84,191.3,191.26,2.61]
[1761246906462,2.84,191.28,191.24,2.61]
[1761246906658,4.05985592,191.27,191.24,2.61]
[1761246906857,2.84,191.28,191.24,2.61]
[1761246907059,4.08560985,191.31,191.24,2.61]
[1761246907060,2.84,191.26,191.24,2.61]
[1761246907459,2.84,191.29,191.24,2.61]
[1761246907660,11.78396395,191.28,191.24,2.61]
[1761246907960,2.84,191.28,191.24,2.61]
[1761246908459,4.05735048,191.27,191.24,2.61]
[1761246908650,7.68902038,191.28,191.24,2.61]
[1761246908851,4.05691422,191.27,191.24,2.61]
[1761246909052,2.84,191.28,191.24,2.61]
[1761246909252,2.84,191.27,191.24,2.61]
[1761246909459,11.74473306,191.28,191.24,2.61]
[1761246909657,2.84,191.29,191.24,2.61]
[1761246909862,2.84,191.27,191.24,2.61]
[1761246914651,2.84,191.27,191.22,7.3151]
[1761246914853,2.84,191.27,191.2,2.61]
[1761246915062,6.89262034,191.26,191.2,2.61]
[1761246915359,2.84,191.25,191.2,2.61]
[1761246915665,2.84,191.25,191.21,2.61]
[1761246916957,2.84,191.25,191.21,7.3154]
[1761246917459,2.84,191.25,191.21,4.7054]
[1761246917659,2.84,191.25,191.22,2.61]
[1761246918867,2.84,191.25,191.22,4.35921387]
[1761246919367,6.89100897,191.27,191.23,2.61]
[1761246919667,2.84,191.27,191.25,2.61]
[1761246920862,2.84,191.27,191.24,1.74921387]
[1761246921068,2.84,191.27,191.24,6.45381387]
[1761246921664,2.84,191.27,191.24,1.74921387]
[1761246922464,2.84,191.27,191.22,6.45431387]
[1761246922665,2.84,191.27,191.22,4.7051]
[1761246923055,2.84,191.26,191.22,4.7051]
[1761246924569,2.84,191.26,191.22,7.3151]
[1761246926073,2.84,191.26,191.22,4.7051]
[1761246927169,4.04979536,191.26,191.22,4.7051]
[1761246927470,2.67,191.25,191.22,4.7051]
[1761246927667,2.67,191.24,191.22,4.7051]
[1761246928272,2.67,191.24,191.21,1.74921387]
[1761246928469,2.67,191.24,191.22,2.71]
[1761246928973,2.67,191.24,191.21,1.74921387]
[1761246929772,2.67,191.24,191.21,4.40921387]
[1761246930671,2.67,191.24,191.21,9.11461387]
[1761246931474,2.67,191.24,191.21,7.3654]
[1761246932571,2.67,191.24,191.21,2.66]
[1761246932874,2.67,191.24,191.19,4.7059]
[1761246933371,2.67,191.24,191.19,7.3659]
[1761246933673,2.67,191.24,191.19,4.7059]
[1761246933871,2.67,191.24,191.19,7.3659]
[1761246934374,2.67,191.24,191.19,2.66]
[1761246935975,2.67,191.24,191.19,4.7059]
[1761246936171,2.67,191.24,191.2,2.66]
[1761246938578,2.78,191.23,191.19,4.7059]
[1761246939275,2.78,191.22,191.17,2.66]
[1761246939473,2.78,191.22,191.16,4.7065]
[1761246939474,1.74921387,191.22,191.16,4.7065]
[1761246939673,2.78,191.21,191.16,4.7065]
[1761246940273,2.78,191.2,191.14,9.11631387]
[1761246940477,2.78,191.2,191.14,7.3671]
[1761246940676,2.78,191.19,191.14,4.7071]
[1761246940876,4.7059,191.2,191.09,0.90920967]
[1761246940877,2.78,191.17,191.09,0.90920967]
[1761246941074,2.78,191.15,191.08,107.11380324]
[1761246941667,2.78,191.15,191.08,105.36458937]
[1761246942175,2.78,191.14,191.08,7.3686]
[1761246942477,2.78,191.13,191.08,2.66]
[1761246943671,1.74921387,191.13,191.05,2.66]
[1761246943877,2.78,191.12,191.05,7.3693]
[1761246944078,2.78,191.12,191.06,2.66]
[1761246944678,2.78,191.12,191.06,7.369]
[1761246946373,2.78,191.12,191.07,2.66]
[1761246947182,7.4871,191.15,191.07,2.66]
[1761246947687,2.78,191.14,191.08,7.3686]
[1761246949887,2.78,191.13,191.09,2.66]
[1761246950081,2.78,191.13,191.08,4.7086]
[1761246950385,4.7076,191.13,191.08,2.66]
[1761246950587,2.78,191.11,191.06,7.3692]
[1761246950990,2.78,191.11,191.06,4.7092]
[1761246951285,2.78,191.11,191.04,8.28030868]
[1761246951488,2.78,191.11,191.04,7.3696]
[1761246952185,1.74921387,191.1,191.04,7.3696]
[1761246952382,2.78,191.09,191.05,2.66]
[1761246957787,2.78,191.09,191.02,2.66]
[1761246959980,2.78,191.09,191.04,2.65]
[1761246961786,2.78,191.09,191.04,7.3596]
[1761246961982,2.78,191.09,191.05,2.65]
[1761246963491,4.83012606,191.16,191.01,0.9108517]
[1761246963492,2.83,191.15,191.07,2.65]
[1761246963886,2.83,191.14,191.07,2.65]
[1761246964297,7.5376,191.13,191.07,7.3588]
[1761246965095,7.5376,191.13,191.08,2.65]
[1761246965284,7.66012606,191.18,191.09,2.65]
[1761246965484,2.83,191.18,191.13,2.65]
[1761246966291,2.83,191.18,191.1,4.39921387]
[1761246966497,2.83,191.15,191.07,4.39921387]
[1761246966988,2.83,191.13,191.09,4.7084]
[1761246967187,2.83,191.13,191.09,7.3584]
[1761246967589,2.83,191.13,191.09,2.65]
[1761246967991,2.83,191.13,191.07,4.7089]
[1761246970592,1.74921387,191.1,191.05,7.3593]
[1761246970798,2.83,191.09,191.05,2.65]
[1761246976590,2.83,191.09,191.06,2.65]
[1761246977191,1.74921387,191.08,191.01,3.5608517]
[1761246977391,1.74921387,191.04,190.96,2.65]
[1761246977596,1.74921387,191.02,190.96,2.65]
[1761246977899,1.74921387,191.02,190.76,86.34865355]
[1761246977900,2.83,190.99,190.92,2.65]
[1761246978104,2.83,190.99,190.93,3.56125717]
[1761246978292,2.83,190.99,190.94,2.65]
[1761246982905,2.83,190.98,190.94,2.65]
[1761246984102,2.83,190.97,190.94,2.65]
[1761246985211,2.83,191.0,190.94,2.65]
[1761246985402,6.86203092,191.0,190.94,2.65]
[1761246985597,4.03203092,190.99,190.94,2.65]
[1761246985802,7.66012606,191.04,190.95,2.65]
[1761246986107,4.0335728,191.03,190.95,2.65]
[1761246986405,2.83,191.04,190.95,2.65]
[1761246986611,2.62,191.03,190.98,4.7111]
[1761246987108,2.62,191.02,190.98,4.7111]
[1761246987410,2.62,191.02,190.98,2.64]
[1761246987711,2.62,191.02,190.96,7.45280545]
[1761246987909,2.62,191.02,190.96,10.09280545]
[1761246988407,4.0335728,191.04,190.98,2.64]
[1761246988605,4.0335728,191.05,190.98,2.64]
[1761246988908,6.7435728,191.05,190.98,2.64]
[1761246989110,4.0335728,191.04,190.98,2.64]
[1761246989504,2.71,191.05,190.98,2.64]
[1761246989698,6.7435728,191.05,190.98,2.64]
[1761246989902,4.0335728,191.04,190.98,2.64]
[1761246990208,2.71,191.03,190.99,7.3207]
[1761246991811,2.71,191.03,191.0,2.61]
[1761246994516,6.73237357,191.03,191.0,2.61]
[1761246994718,2.71,191.03,191.0,2.61]
[1761246996126,4.12879144,191.04,191.01,2.61]
[1761246996326,2.71,191.05,191.01,2.61]
[1761246998636,2.71,191.05,191.01,7.3203]
[1761247000028,6.83879144,191.05,191.01,7.3203]
[1761247000220,2.71,191.05,191.01,7.3203]
[1761247001026,2.71,191.05,191.02,2.61]
[1761247002928,2.71,191.05,191.02,4.71]
[1761247003134,4.12799603,191.06,191.03,2.61]
[1761247003436,2.71,191.07,191.03,2.61]
[1761247004034,4.12799603,191.08,191.04,2.61]
[1761247004430,6.83799603,191.08,191.04,2.61]
[1761247004932,6.83799603,191.08,191.04,7.3196]
[1761247005134,6.83799603,191.08,191.05,2.61]
[1761247006336,2.71,191.07,191.04,4.7096]
[1761247007739,2.71,191.07,191.04,7.3196]
[1761247009728,4.12799603,191.08,191.05,2.61]
[1761247010230,4.12799603,191.08,191.05,7.3192]
[1761247010428,4.12799603,191.08,191.06,2.61]
[1761247011634,4.12799603,191.08,191.06,7.3191]
[1761247012234,4.12799603,191.08,190.99,2.74130545]
[1761247012235,75.60031296,191.09,191.08,2.61]
[1761247012435,79.72819808,191.09,191.08,2.61]
[1761247013139,79.72819808,191.09,191.07,4.7088]
[1761247013340,75.60031296,191.09,191.07,7.3188]
[1761247014542,75.60031296,191.09,191.08,2.61]
[1761247014729,78.31031296,191.09,191.07,4.7088]
[1761247015136,2.71,191.09,191.07,4.7088]
[1761247015436,6.8360234,191.11,191.08,2.61]
[1761247015639,2.71,191.1,191.08,2.61]
[1761247016534,6.8360234,191.11,191.08,2.61]
[1761247016839,2.71,191.1,191.08,2.61]
[1761247017030,2.71,191.1,191.07,7.3188]
[1761247021839,2.71,191.1,191.07,4.7088]
[1761247022035,2.66,191.08,191.03,8.19]
[1761247022236,2.66,191.07,191.03,8.19]
[1761247022443,2.66,191.06,191.03,8.19]
[1761247022638,2.66,191.06,191.03,12.8999]
[1761247023237,2.66,191.06,191.04,2.73]
[1761247023443,2.74130545,191.08,191.04,2.73]
[1761247023741,2.66,191.07,191.04,2.73]
[1761247023936,2.66,191.07,191.04,7.4395]
[1761247025644,2.66,191.07,191.05,2.73]
[1761247026145,6.78231687,191.07,191.05,2.73]
[1761247026345,2.66,191.07,191.05,2.73]
[1761247027347,2.66,191.07,191.04,4.7095]
[1761247027638,5.40130545,191.08,191.05,2.73]
[1761247027845,9.52452837,191.08,191.05,2.73]
[1761247028049,4.12322292,191.07,191.05,2.73]
[1761247028240,5.40130545,191.08,191.05,2.73]
[1761247028948,9.52452837,191.08,191.05,2.73]
[1761247029143,4.12322292,191.07,191.05,2.73]
[1761247029646,6.78322292,191.07,191.04,4.7095]
[1761247029852,2.66,191.05,191.04,4.7095]
[1761247030155,2.66,191.07,191.04,7.4395]
[1761247030339,4.12794463,191.06,191.04,7.4395]
[1761247031246,4.12794463,191.07,191.06,4.7092]
[1761247031446,4.12794463,191.08,191.07,2.73]
[1761247031638,6.78794463,191.08,191.06,4.7092]
[1761247031838,4.12794463,191.07,191.06,4.7092]
[1761247032940,4.12794463,191.07,191.06,7.4392]
[1761247035554,4.12794463,191.08,191.06,7.4392]
[1761247035754,4.12794463,191.07,191.06,7.4392]
[1761247035950,4.12794463,191.08,191.06,7.4392]
[1761247036152,4.12794463,191.07,191.06,7.4392]
[1761247036352,4.12794463,191.08,191.06,7.4392]
[1761247036660,4.12794463,191.07,191.06,7.4392]
[1761247036847,4.12794463,191.08,191.06,7.4392]
[1761247037049,4.12794463,191.07,191.06,7.4392]
[1761247037245,4.12794463,191.08,191.07,2.73]
[1761247038256,4.12794463,191.08,191.06,7.4392]
[1761247038457,4.12794463,191.07,191.06,7.4392]
[1761247038666,4.12794463,191.08,191.06,7.4392]
[1761247038956,4.12794463,191.07,191.06,7.4392]
[1761247039156,4.12794463,191.08,191.06,7.4392]
[1761247039456,4.12794463,191.07,191.06,7.4392]
[1761247039650,4.12794463,191.08,191.06,7.4392]
[1761247039844,4.12794463,191.07,191.06,7.4392]
[1761247040044,4.12794463,191.08,191.06,7.4392]
[1761247040250,4.12794463,191.07,191.06,7.4392]
[1761247049360,6.85794463,191.07,191.04,7.4995]
[1761247049560,5.8807224,191.06,191.04,7.4995]
[1761247049762,4.12794463,191.05,191.04,7.4995]
[1761247049961,6.85794463,191.05,191.04,4.7095]
[1761247053670,8.6107224,191.05,191.03,8.25]
[1761247053864,4.12794463,191.04,191.03,8.25]
[1761247055071,4.12794463,191.04,191.03,12.9598]
[1761247058174,8.6107224,191.04,191.03,5.46]
[1761247058665,5.8807224,191.04,191.03,8.25]
[1761247060273,8.6107224,191.04,191.03,5.46]
[1761247062164,13.28497103,191.04,191.03,5.46]
[1761247062975,22.09533059,191.04,191.03,4.48425054]
[1761247063771,18.11509709,191.04,191.03,4.48425054]
[1761247064260,2.73,191.03,190.99,4.7107]
[1761247064465,1.75277777,191.0,190.99,4.7107]
[1761247064665,5.8807224,191.0,190.99,4.7107]
[1761247065675,5.8807224,191.0,190.99,7.5007]
[1761247066374,8.6107224,191.0,190.98,2.79]
[1761247066566,4.48277777,191.0,190.98,2.79]
[1761247066768,4.48277777,191.0,190.97,4.7113]
[1761247066769,2.73,190.99,190.97,4.7113]
[1761247067073,1.75277777,190.98,190.97,4.7113]
[1761247067477,1.75277777,190.98,190.93,3.70125717]
[1761247067478,2.73,190.97,190.93,3.70125717]
[1761247067769,2.73,190.95,190.93,2.79]
[1761247068673,1.75277777,190.94,190.93,2.79]
[1761247069471,2.73,190.95,190.93,2.79]
[1761247071972,1.75277777,190.96,190.94,2.79]
[1761247072169,1.75277777,190.97,190.94,2.79]
[1761247072780,4.48277777,190.97,190.94,2.79]
[1761247077675,4.48277777,190.97,190.94,4.712]
[1761247077979,4.48277777,190.97,190.95,2.79]
[1761247078778,4.48277777,190.97,190.94,7.452]
[1761247079380,4.48277777,190.97,190.95,2.74]
[1761247083090,2.73,190.97,190.95,2.74]
[1761247084379,2.73,190.97,190.94,7.452]
[1761247090887,2.73,190.97,190.95,2.74]
[1761247094991,2.73,190.97,190.92,7.4526]
[1761247095192,2.73,190.97,190.93,2.74]
[1761247095688,2.84,190.96,190.91,8.33]
[1761247095887,4.59277777,190.95,190.92,2.74]
[1761247096095,2.84,190.95,190.92,2.74]
[1761247096599,2.84,190.94,190.92,2.74]
[1761247098004,2.84,190.94,190.91,8.33]
[1761247098606,2.84,190.94,190.91,5.59]
[1761247098807,2.84,190.94,190.91,8.33]
[1761247099502,2.84,190.94,190.91,2.74]
[1761247102110,2.84,190.94,190.89,4.7132]
[1761247102301,2.84,190.94,190.89,12.2832]
[1761247102504,2.84,190.93,190.89,12.2832]
[1761247102703,2.84,190.93,190.89,7.57]
[1761247103810,2.84,190.92,190.89,7.57]
[1761247106713,2.6,190.91,190.89,7.57]
[1761247107707,2.6,190.91,190.89,4.83]
[1761247110917,4.09337857,190.9,190.89,4.83]
[1761247111119,6.97337857,190.9,190.89,4.83]
[1761247114315,2.88,190.9,190.89,4.83]
[1761247114714,6.97337857,190.9,190.89,4.83]
[1761247115420,2.88,190.9,190.89,4.83]
[1761247115721,6.97337857,190.9,190.89,4.83]
[1761247115912,2.88,190.9,190.89,4.83]
[1761247116112,6.97337857,190.9,190.89,4.83]
[1761247121714,8.01337857,190.9,190.89,4.01716151]
[1761247123024,8.01337857,190.9,190.89,6.151e-05]
[1761247123325,2.88,190.89,190.79,2.8]
[1761247123523,2.88,190.87,190.79,2.8]
[1761247123725,2.88,190.86,190.79,2.8]
[1761247124226,4.7144,190.85,190.79,7.5157]
[1761247124416,4.7144,190.85,190.75,0.91203334]
[1761247124417,2.88,190.87,190.8,2.8]
[1761247125224,6.96694608,190.87,190.8,2.8]
[1761247125421,2.88,190.87,190.8,2.8]
[1761247126031,4.08613991,190.88,190.83,2.8]
[1761247126213,6.96613991,190.9,190.83,2.8]
[1761247126419,4.08613991,190.89,190.83,2.8]
[1761247126726,2.88,190.9,190.83,2.8]
[1761247127122,6.96613991,190.9,190.84,2.8]
[1761247127322,6.96613991,190.89,190.84,2.8]
[1761247127620,2.88,190.89,190.84,2.8]
[1761247128019,2.88,190.89,190.86,2.8]
[1761247129930,2.88,190.89,190.86,7.514]
[1761247130329,2.88,190.89,190.87,2.8]
[1761247133725,6.96625371,190.9,190.87,2.8]
[1761247133931,4.08625371,190.89,190.87,2.8]
[1761247134223,2.88,190.9,190.87,2.8]
[1761247134633,2.88,190.9,190.88,2.8]
[1761247135831,6.96832126,190.92,190.89,2.8]
[1761247136031,4.08832126,190.91,190.89,2.8]
[1761247136523,2.88,190.92,190.89,2.8]
[1761247136833,2.88,190.92,190.89,7.5133]
[1761247137028,6.96832126,190.92,190.89,4.7133]
[1761247137230,4.08832126,190.91,190.9,2.8]
[1761247137531,2.88,190.92,190.9,2.8]
[1761247137732,6.96832126,190.92,190.9,2.8]
[1761247137926,4.08832126,190.91,190.9,2.8]
[1761247138429,2.88,190.95,190.91,2.8]
[1761247138635,6.97292261,190.94,190.91,2.8]
[1761247138930,6.77292261,190.93,190.91,2.8]
[1761247139132,7.51012606,190.97,190.92,2.84]
[1761247139431,6.77335807,190.96,190.92,2.84]
[1761247139634,4.09335807,190.95,190.92,2.84]
[1761247140128,4.09335807,190.98,190.92,2.84]
[1761247140326,6.77335807,190.97,190.92,2.84]
[1761247140628,4.09335807,190.96,190.92,2.84]
[1761247140826,4.09335807,190.95,190.92,2.84]
[1761247141029,4.09335807,190.96,190.94,7.552]
[1761247141530,4.09335807,190.96,190.94,2.84]